[Event "German Bundesliga 2022-23"]
[Site "Germany"]
[Date "2022.11.27"]
[Round "4.14"]
[White "Fedorchuk, Sergey A."]
[Black "Bogner, Sebastian"]
[Result "1-0"]
[ECO "C42"]
[WhiteElo "2634"]
[BlackElo "2540"]
[Annotator "TA"]
[PlyCount "113"]
[EventDate "2022.10.21"]
[EventType "team-tourn"]
[EventCountry "GER"]
[SourceTitle "playchess.com"]
[Source "ChessBase"]
[SourceQuality "1"]
[TimeControl "40/6000+30:3000+30"]

{[%evp 13,113,14,25,15,21,15,12,27,25,20,15,16,21,18,23,10,16,29,31,18,61,53,70,51,87,66,68,82,81,46,46,56,55,53,133,62,72,71,96,64,66,68,71,65,76,43,75,30,27,0,43,37,49,0,83,69,70,79,102,60,143,83,144,70,128,54,64,0,131,57,51,45,61,53,52,6,23,8,24,18,70,79,82,78,71,82,226,229,254,208,221,202,425,439,426,402,1277,1243,1349,1234,2188,1967]} 1. e4 {[%emt 0:00:04]} e5 {[%emt 0:00:09]} 2. Nf3 {[%emt 0:01:20]} Nf6 {[%emt 0:00:05]} 3. Nxe5 {[%emt 0:03:42]} d6 {[%emt 0:00:24]} 4. Nf3 {[%emt 0:00:11]} Nxe4 {[%emt 0:00:07]} 5. Bd3 {[%emt 0:01:59]} Nf6 {[%emt 0:08:36]} 6. O-O {[%emt 0:00:34]} Be7 {[%emt 0:00:22]} 7. h3 {[%emt 0:02:18]} O-O {[%emt 0:00:17]} 8. c3 {[%emt 0:00:13] C42: Petroff Defence: 3 Nxe5 and unusual White 3rd moves.} d5 {[%emt 0:06:57] is recently more successful than 8...b6.} 9. Bc2 {[%emt 0:00:40]} Re8 {[%emt 0:04:06] is the legacy move (9...Bd6).} 10. d4 {[%emt 0:01:11] The position is equal.} Bd6 {[%emt 0:03:36]} 11. Bg5 {[%emt 0:03:40][%cal Bc1g5,Bg5h4,Bh4g3,Bg3h2][%mdl 32]} Nbd7 {[%emt 0:01:57][%cal Bb8d7,Bd7f8,Bf8g6,Bg6f4][%mdl 32]} 12. Nbd2 {[%emt 0:05:35]} Nf8 {[%emt 0:01:12]} 13. Re1 {[%emt 0:01:30]} Rxe1+ {[%emt 0:20:59]} 14. Qxe1 {[%emt 0:00:57]} h6 {[%emt 0:05:29]} 15. Bh4 {[%emt 0:07:22]} Ng6 {[%emt 0:05:46] Prevents Ne5.} 16. Bg3 {[%emt 0:09:58] [#]} Nf4 $146 {[%emt 0:10:11]} (16... Bxg3 {simplifies} 17. fxg3 Qd6 18. Bxg6 fxg6 19. Ne5 g5) ({Predecessor:} 16... Bxg3 17. fxg3 Nf8 18. g4 N6h7 19. Qe3 c6 20. Ne5 Be6 21. Ndf3 Qe7 22. Re1 Re8 {½-½ (51) Shirov,A (2751)-Anand,V (2769) Leon 2000}) 17. Qe3 {[%emt 0:11:13]} N6h5 {[%emt 0:00:30]} 18. Bh2 {[%emt 0:01:59]} Be6 {[%emt 0:06:21]} 19. Kh1 {[%emt 0:03:17]} g5 $1 {[%emt 0:03:01]} 20. Ne5 {[%emt 0:08:23]} Qf6 {[%emt 0:03:29]} 21. Qf3 {[%emt 0:03:31]} Ng7 {[%emt 0:05:15]} 22. Ng4 {[%emt 0:13:14]} Bxg4 {[%emt 0:02:04]} 23. hxg4 {[%emt 0:00:07] Hoping for g3.} Ne8 {[%emt 0:10:08]} (23... h5 $14) 24. Nf1 {[%emt 0:09:48]} (24. g3 $16 Ne6 25. Qxd5) 24... c6 $14 {[%emt 0:03:10]} 25. Re1 {[%emt 0:03:29][%cal Ba1e1,Be1e5,Be5h5][%mdl 32]} Be7 {[%emt 0:03:51]} 26. Re5 {[%emt 0:10:23]} (26. Ne3 {simplifies} Ng7 27. b4 Kf8 28. Kg1) 26... Ng7 {[%emt 0:00:45]} 27. Bxf4 {[%emt 0:04:15]} gxf4 {[%emt 0:00:07]} 28. Qd3 {[%emt 0:00:06] Threatening mate with Qh7+.} Ne6 {[%emt 0:01:44]} 29. Nh2 {[%emt 0:02:09]} Bd6 {[%emt 0:02:26]} 30. Rh5 {[%emt 0:00:29] Strongly threatening Qh7+.} Ng5 {[%emt 0:00:19] Against Qh7+} 31. Nf3 {[%emt 0:00:52] Black must now prevent Nxg5.} Ne4 {[%emt 0:00:43]} 32. Kg1 $36 {[%emt 0:00:47][%mdl 2048] White fights for an advantage.} Re8 {[%emt 0:00:14]} 33. Nh4 {[%emt 0:00:43]} (33. Qd1 $14 {deserves consideration.}) 33... Ng5 {[%emt 0:01:02]} (33... Ng3 $11 34. fxg3 Re1+ 35. Kf2 fxg3+ 36. Kxe1 Qf2+ 37. Kd1 Qg1+ 38. Ke2 (38. Kd2 Bf4+ 39. Ke2 Qf2+ 40. Kd1 Qg1+ 41. Ke2 Qf2+ 42. Kd1 Qg1+ 43. Ke2 $11) 38... Qf2+ 39. Kd1 Qg1+ 40. Ke2 (40. Kd2 Bf4+ 41. Ke2 Qf2+ 42. Kd1 Qg1+ 43. Ke2 Qf2+ 44. Kd1 Qg1+ 45. Ke2 $11) 40... Qf2+ 41. Kd1) 34. Kf1 $16 {[%emt 0:00:51]} Qe6 {[%emt 0:00:57][%csl Ge8][%cal Re6e1]} 35. Qd1 {[%emt 0:00:17] Prevents Qe1+.} Bf8 {[%emt 0:00:48]} 36. Nf5 {[%emt 0:00:35]} a6 {[%emt 0:00:38]} (36... Ne4 $14) 37. Bd3 {[%emt 0:00:30] Active counter play!} (37. f3 $142) 37... Bg7 {[%emt 0:00:34]} (37... Ne4 $142) 38. Be2 {[%emt 0:00:34]} (38. Qc1 $16) 38... Bf8 {[%emt 0:00:26]} ({Better is} 38... Ne4 $14) 39. Bf3 {[%emt 0:00:34]} (39. f3 $1 $16) 39... Bg7 {[%emt 0:00:34]} 40. Be2 {[%emt 0:00:26]} (40. a3 $14) 40... Bf8 {[%emt 0:00:20] [#]} 41. g3 {[%emt 0:50:37]} (41. f3 $1 $16) 41... fxg3 $14 {[%emt 0:03:16]} 42. Nxg3 {[%emt 0:00:00]} Ne4 {[%emt 0:07:41]} 43. Nf5 {[%emt 0:00:00]} Nd6 {[%emt 0:00:44]} 44. Ne3 {[%emt 0:00:00]} (44. Bd3 $14) 44... Ne4 $11 {[%emt 0:01:14][%cal Oe4f2]} 45. Ng2 {[%emt 0:00:00]} (45. Nf5 Bg7 $16) 45... Bd6 {[%emt 0:02:10]} 46. Bd3 {[%emt 0:00:00]} Ng5 {[%emt 0:13:32]} ({Black should play} 46... Qf6 $11 47. Bxe4 Rxe4) 47. Ne3 $14 {[%emt 0:00:00]} Bf4 {[%emt 0:03:25] [#]} 48. Nf5 {[%emt 0:00:00]} Ne4 {[%emt 0:02:03]} 49. Kg2 {[%emt 0:00:00]} Nd6 {[%emt 0:01:59] This move loses the game for Black.} (49... Kf8 $16 {is a better defense.}) 50. Qf3 $18 {[%emt 0:00:00]} Bc1 {[%emt 0:04:08]} 51. Qg3 {[%emt 0:00:00]} Ne4 {[%emt 0:02:08]} 52. Qh2 {[%emt 0:00:00] And now f4 would win.} Kf8 $2 {[%emt 0:11:25]} (52... Nxf2 53. Nxh6+ (53. Kxf2 Qe1+ 54. Kf3 Re3+ 55. Nxe3 Qxe3+ 56. Kg2 Qxd3 $16) 53... Bxh6 54. Rxh6 (54. Kxf2 Qe3+ 55. Kg2 Qd2+ 56. Kh1 Re1+) 54... Qxh6 55. Qxh6 Nxd3 56. Qg5+ Kf8) 53. f4 {[%emt 0:02:39]} ({Not} 53. Nxh6 Bxh6 54. Rxh6 Qxg4+ 55. Kh1 Qd1+ 56. Kg2 Qg4+ 57. Kh1 Qf3+ 58. Kg1 Qg4+ 59. Kh1 $11 (59. Qg2 Qf4 $11)) 53... Qg6 {[%emt 0:01:49]} 54. Nxh6 {[%emt 0:00:14]} Bxb2 {[%emt 0:01:32]} (54... Re7 $142 55. Qh4 Qf6) 55. Qh4 {[%emt 0:02:44] White is clearly winning.} f6 {[%emt 0:00:39]} 56. Nf5 {[%emt 0:00:21] Intending Rh6 and mate.} Kf7 {[%emt 0:00:33]} 57. Rh6 {[%emt 0:01:13] Weighted Error Value: White=0.21 (precise) /Black=0.29 (precise)} 1-0

[Event "German Bundesliga 2022-23"]
[Site "Germany"]
[Date "2022.11.27"]
[Round "4.15"]
[White "Palac, Mladen"]
[Black "Gustafsson, Jan"]
[Result "1/2-1/2"]
[ECO "C84"]
[WhiteElo "2509"]
[BlackElo "2638"]
[Annotator "TA"]
[PlyCount "40"]
[EventDate "2022.10.21"]
[EventType "team-tourn"]
[EventCountry "GER"]
[SourceTitle "playchess.com"]
[Source "ChessBase"]
[SourceQuality "1"]
[TimeControl "40/6000+30:3000+30"]

{[%evp 16,40,0,0,17,22,18,12,12,21,19,7,15,12,14,11,19,20,16,18,20,22,15,10,12,11,19]} 1. e4 {[%emt 0:00:02]} e5 {[%emt 0:00:11]} 2. Nf3 {[%emt 0:00:08]} Nc6 {[%emt 0:00:09]} 3. Bb5 {[%emt 0:00:14][%cal Bf1b5,Bb5a4,Ba4b3][%mdl 32]} a6 {[%emt 0:00:11]} 4. Ba4 {[%emt 0:00:06]} Nf6 {[%emt 0:00:10]} 5. O-O {[%emt 0:00:07]} Be7 {[%emt 0:00:10]} 6. d3 {[%emt 0:00:22]} b5 {[%emt 0:00:25]} 7. Bb3 {[%emt 0:00:08]} O-O {[%emt 0:00:16]} 8. Nc3 {[%emt 0:00:16]} d6 {[%emt 0:00:48]} 9. a3 {[%emt 0:00:07] The position is equal.} Na5 {[%emt 0:00:39] C77: Ruy Lopez: 3...a6 4 Ba4 Nf6, unusual lines.} 10. Ba2 {[%emt 0:00:07]} Be6 {[%emt 0:00:10]} 11. b4 {[%emt 0:00:26]} Bxa2 {[%emt 0:00:13]} 12. Rxa2 {[%emt 0:00:46]} Nc6 {[%emt 0:00:12]} 13. Bg5 {[%emt 0:00:22]} h6 {[%emt 0:00:36]} 14. Bxf6 {[%emt 0:02:41]} Bxf6 {[%emt 0:01:07]} 15. Nd5 {[%emt 0:00:06]} Nd4 {[%emt 0:00:13]} 16. Nxd4 {[%emt 0:10:21]} exd4 {[%emt 0:00:15]} 17. a4 {[%emt 0:02:24] Threatens to win with axb5.} c6 {[%emt 0:00:26]} 18. Nxf6+ {[%emt 0:00:20]} Qxf6 {[%emt 0:00:10] [#]} 19. Qa1 $146 {[%emt 0:04:10]} ({Predecessor:} 19. axb5 axb5 20. Qa1 Rxa2 21. Qxa2 c5 22. Rb1 c4 23. dxc4 Qe6 24. Rd1 Qxe4 25. cxb5 {½-½ (31) De Andres Senra,S (2139)-Tomilin,A (2107) ICCF email 2020}) 19... Rab8 {[%emt 0:00:15]} 20. axb5 {[%emt 0:01:55]} axb5 {[%emt 0:00:10] An uneventful encounter.   Weighted Error Value: White=0.00 (flawless) /Black=0.02 (flawless)} 1/2-1/2

[Event "German Bundesliga 2022-23"]
[Site "Germany"]
[Date "2022.11.27"]
[Round "4.15"]
[White "Lokander, Martin"]
[Black "Kovalenko, Igor"]
[Result "0-1"]
[ECO "E24"]
[WhiteElo "2443"]
[BlackElo "2674"]
[Annotator "TA"]
[PlyCount "86"]
[EventDate "2022.10.21"]
[EventType "team-tourn"]
[EventCountry "GER"]
[SourceTitle "playchess.com"]
[Source "ChessBase"]
[SourceQuality "1"]
[TimeControl "40/6000+30:3000+30"]

{[%evp 16,86,-28,-27,-12,-41,-41,-37,-29,-40,-24,-36,0,-18,-3,-37,-33,-20,-34,-52,-10,-8,0,0,0,0,0,0,0,-12,0,-77,-68,-68,-68,-66,-65,-65,-68,-68,-80,-88,-88,-88,-81,-94,-93,-130,-145,-122,-35,-41,-21,-22,-18,-115,-102,-158,-83,-120,-70,-66,-58,-712,-683,-662,-646,-646,-666,-603,-360,-895,-882]} 1. d4 {[%emt 0:00:03]} Nf6 {[%emt 0:00:10]} 2. c4 {[%emt 0:00:09]} e6 {[%emt 0:00:03]} 3. Nc3 {[%emt 0:00:36]} Bb4 {[%emt 0:00:05]} 4. a3 {[%emt 0:00:43]} Bxc3+ {[%emt 0:00:31]} 5. bxc3 {[%emt 0:00:06]} c5 {[%emt 0:01:12]} 6. f3 {[%emt 0:00:37]} d6 {[%emt 0:00:19]} 7. e4 {[%emt 0:00:23]} Nc6 {[%emt 0:00:03]} 8. Be3 {[%emt 0:03:47]} b6 {[%emt 0:00:06]} 9. Bd3 {[%emt 0:02:46]} Na5 {[%emt 0:01:30] E24: Nimzo-Indian: Sämisch: Unusual Black 5th moves and 5...c5 sidelines.} 10. Ne2 {[%emt 0:05:34]} Ba6 {[%emt 0:01:26]} 11. Ng3 {[%emt 0:09:59]} Nd7 {[%emt 0:06:06] Black is slightly better.} (11... Bxc4 $2 12. Bxc4 Nxc4 13. Qa4+ Qd7 14. Qxc4 $18) (11... Nxc4 $2 12. Qa4+ b5 13. Qxa6 $18) 12. Qe2 {[%emt 0:04:44]} Qc7 {[%emt 0:02:26][%cal Oa6c4]} 13. Rc1 {[%emt 0:06:13]} O-O-O {[%emt 0:00:30]} 14. f4 {[%emt 0:00:56]} g6 {[%emt 0:03:30] [#]} 15. e5 $146 {[%emt 0:10:49]} ({Predecessor:} 15. O-O Rde8 16. Rfd1 f5 17. Bf2 Rhf8 18. Re1 Nf6 19. e5 dxe5 20. fxe5 Ng4 21. Rcd1 {½-½ (55) Gutman,L (2485)-Short,N (2575) Biel 1985}) 15... f5 {[%emt 0:00:12][%cal Rd6e5] Against Ne4} 16. exf6 {[%emt 0:06:43]} Nxf6 {[%emt 0:00:06]} 17. O-O {[%emt 0:00:31]} Rhe8 {[%emt 0:03:31]} 18. Rfe1 {[%emt 0:07:21]} Rd7 {[%emt 0:02:10]} 19. Nf1 {[%emt 0:03:07]} Rf7 {[%emt 0:02:49]} 20. Nd2 {[%emt 0:01:44]} Nh5 {[%emt 0:00:09]} 21. Rf1 {[%emt 0:03:59]} Kb8 {[%emt 0:04:43]} 22. g4 {[%emt 0:05:45]} Nf6 {[%emt 0:00:23]} 23. Bf2 {[%emt 0:00:16]} (23. h3 $11) 23... Bb7 {[%emt 0:01:21]} 24. Bg3 {[%emt 0:11:34]} Qc6 {[%emt 0:00:35][%cal Oa5b3]} 25. g5 {[%emt 0:07:08]} Qh1+ {[%emt 0:10:36]} (25... Nh5 {simplifies} 26. Be4 Qa4 27. Bxb7 Nxb7 28. Qd3 Rc8) 26. Kf2 {[%emt 0:00:20]} Qg2+ {[%emt 0:00:04]} 27. Ke1 {[%emt 0:04:58]} Qxe2+ {[%emt 0:00:31]} 28. Bxe2 {[%emt 0:00:39]} Ne4 {[%emt 0:00:13]} 29. Nxe4 {[%emt 0:00:37]} Bxe4 {[%emt 0:00:05]} 30. dxc5 {[%emt 0:01:13]} bxc5 {[%emt 0:00:07]} 31. f5 {[%emt 0:00:22]} exf5 {[%emt 0:00:04] [#] Threatens to win with ...Bd3.} 32. Bxd6+ {[%emt 0:00:07]} Kb7 {[%emt 0:00:04]} (32... Kc8 $17 {White must now prevent ...Bd3.} 33. Kf2 Rb7) 33. Kf2 $15 {[%emt 0:00:54]} Kc6 {[%emt 0:12:08]} 34. Bf4 {[%emt 0:00:30]} Rb7 {[%emt 0:00:30] And now ...Rb2 would win.} 35. Kg3 {[%emt 0:02:21]} (35. Rcd1 $11 {keeps the balance.} Rb3 36. Rd6+ Kb7 37. Rd7+ Kb6 38. Rfd1) 35... Rb2 $36 {[%emt 0:01:41][%mdl 2048] Black has strong initiative.} 36. Rf2 {[%emt 0:00:03]} (36. Rfe1 $142) 36... Rd8 {[%emt 0:01:04]} (36... Ra2 $142 37. h4 (37. Rd1 $2 Nb7 $19) 37... Rxa3) 37. h4 {[%emt 0:01:24]} Kb6 {[%emt 0:00:24]} ({Black should try} 37... Ra2 $17 38. h5 Rxa3) 38. h5 {[%emt 0:00:21]} gxh5 {[%emt 0:00:19][%cal Oa5c4] Black is much more active.} 39. Bxh5 $2 {[%emt 0:01:51][%mdl 8192] [#] This move loses the game for White.} (39. Rh2 $15) 39... Rd3+ $19 {[%emt 0:00:56]} ({Not} 39... Nxc4 40. Rxb2+ Nxb2 41. Be2 $17) 40. Rf3 {[%emt 0:00:14]} Bxf3 {[%emt 0:02:11]} (40... Nxc4 41. Rxd3 Bxd3 42. Rd1 $11) 41. Bxf3 {[%emt 0:50:05]} Nxc4 {[%emt 0:50:36][%cal Ob6b5]} 42. Rh1 {[%emt 0:00:48]} Rxc3 {[%emt 0:00:33]} ({Weaker is} 42... Nxa3 43. Rxh7 Rc2 44. Rh6+ Kb5 45. Rd6 $11) 43. Rh6+ $2 {[%emt 0:00:10]} (43. Rxh7 Ra2 44. Rh1) 43... Kb5 {[%emt 0:00:07] Weighted Error Value: White=0.46/Black=0.26 (precise)} 0-1

[Event "German Bundesliga 2022-23"]
[Site "Germany"]
[Date "2022.11.27"]
[Round "4.16"]
[White "Movsesian, Sergei"]
[Black "Zelcic, Robert"]
[Result "1/2-1/2"]
[ECO "B12"]
[WhiteElo "2624"]
[BlackElo "2496"]
[Annotator "TA"]
[PlyCount "176"]
[EventDate "2022.10.21"]
[EventType "team-tourn"]
[EventCountry "GER"]
[SourceTitle "playchess.com"]
[Source "ChessBase"]
[SourceQuality "1"]
[TimeControl "40/6000+30:3000+30"]

{[%evp 35,176,0,33,15,27,20,73,77,83,84,77,83,81,82,86,74,104,48,46,47,49,43,46,51,49,46,45,42,54,33,28,20,81,53,75,31,74,76,86,43,39,41,125,81,113,62,86,61,49,27,27,24,22,22,20,18,34,34,35,34,87,87,87,87,87,87,87,87,87,87,87,87,87,87,87,87,87,87,87,87,87,87,87,90,90,87,87,87,87,87,87,0,87,87,87,87,87,87,87,87,87,83,95,95,102,102,102,8,102,8,102,89,95,95,102,102,102,102,102,102,102,102,102,102,102,102,102,0,102,102,102,102,102,8,8,8,8,8,8,0,0,243,0]} 1. e4 {[%emt 0:00:03]} c6 {[%emt 0:00:04]} 2. d4 {[%emt 0:00:08]} d5 {[%emt 0:00:03]} 3. e5 {[%emt 0:00:07]} c5 {[%emt 0:00:01]} 4. dxc5 {[%emt 0:00:33]} e6 {[%emt 0:00:05]} 5. a3 {[%emt 0:01:42]} Bxc5 {[%emt 0:00:10]} 6. Qg4 {[%emt 0:00:23]} Ne7 {[%emt 0:06:05]} 7. Bd3 {[%emt 0:02:38]} Nbc6 {[%emt 0:08:28]} 8. Nf3 {[%emt 0:02:45]} Ng6 {[%emt 0:00:04]} 9. O-O {[%emt 0:03:26]} O-O {[%emt 0:01:24]} 10. Qh5 {[%emt 0:02:00]} Qc7 {[%emt 0:15:47]} 11. Nc3 {[%emt 0:02:30]} a6 {[%emt 0:13:26]} 12. Ne2 {[%emt 0:07:23]} h6 {[%emt 0:13:26]} 13. b4 {[%emt 0:07:42]} Ba7 {[%emt 0:00:03]} 14. Bb2 {[%emt 0:01:01]} Nce7 {[%emt 0:00:19]} 15. Qg4 {[%emt 0:11:00]} Bd7 {[%emt 0:00:52]} 16. h4 {[%emt 0:04:02]} Rfc8 {[%emt 0:05:02]} 17. h5 {[%emt 0:12:54]} Nf8 {[%emt 0:01:36]} 18. Ned4 {[%emt 0:01:20]} Nc6 {[%emt 0:05:37]} 19. Rae1 {[%emt 0:03:27]} (19. Rfe1 {simplifies} Bxd4 20. Bxd4 Nxd4 21. Nxd4 Qd8 22. Qg3) 19... Qd8 {[%emt 0:06:00]} 20. Bc1 {[%emt 0:10:24]} f5 {[%emt 0:01:41]} (20... Kh8 $1 $11 {remains equal.}) 21. exf6 $16 {[%emt 0:01:24]} Qxf6 {[%emt 0:01:40]} 22. Nxc6 {[%emt 0:00:33]} Bxc6 {[%emt 0:00:18]} 23. Bf4 {[%emt 0:06:10]} Bb5 {[%emt 0:00:48]} 24. Be5 {[%emt 0:00:47]} Qf7 {[%emt 0:01:00]} 25. Re2 {[%emt 0:03:48]} Rc4 {[%emt 0:15:09]} 26. Bd4 {[%emt 0:01:14]} (26. Bxc4 $6 Bxc4 27. Rfe1 Bxe2 28. Rxe2 Rc8 $11) (26. Nd4 $16) 26... Bxd4 $1 $14 {[%emt 0:00:21]} 27. Nxd4 {[%emt 0:00:59]} Qf6 {[%emt 0:00:52]} 28. Bxc4 {[%emt 0:04:44]} Bxc4 {[%emt 0:00:05]} 29. Re3 {[%emt 0:06:26]} Bxf1 {[%emt 0:00:12]} 30. Kxf1 {[%emt 0:00:14]} Re8 {[%emt 0:07:56]} 31. c3 {[%emt 0:02:35]} Qf7 {[%emt 0:01:42]} 32. Kg1 {[%emt 0:03:04]} Qf6 {[%emt 0:04:00]} 33. a4 {[%emt 0:00:52]} Re7 {[%emt 0:00:44]} (33... e5 $11) 34. Qg3 {[%emt 0:04:10]} Qf7 {[%emt 0:01:19]} 35. Qe5 {[%emt 0:02:09]} Nd7 {[%emt 0:00:45]} 36. Qd6 $1 {[%emt 0:00:06]} Nf8 {[%emt 0:00:11]} 37. Rf3 {[%emt 0:02:12]} Qe8 {[%emt 0:00:01]} 38. a5 {[%emt 0:00:31]} Rf7 {[%emt 0:00:57]} (38... Nh7 $14) 39. Re3 {[%emt 0:00:39]} Qa4 {[%emt 0:00:53]} 40. f3 {[%emt 0:01:42]} (40. Kh2 $16) 40... Qd7 {[%emt 0:00:48]} 41. Qxd7 {[%emt 0:07:19]} Rxd7 {[%emt 0:00:02]} 42. Nb3 {[%emt 0:00:44]} (42. Nxe6 $2 {perishes.} Re7 43. Re5 Nxe6 $19) 42... Rd6 {[%emt 0:01:03]} 43. Nc5 {[%emt 0:02:30]} b6 $1 {[%emt 0:00:16]} 44. axb6 {[%emt 0:01:17]} Rxb6 {[%emt 0:00:02]} 45. Re1 {[%emt 0:02:47]} d4 {[%emt 0:02:32]} 46. cxd4 {[%emt 0:01:03]} Rxb4 {[%emt 0:00:06]} 47. Nxe6 {[%emt 0:00:33]} Nxe6 {[%emt 0:02:14]} ({Black should try} 47... a5 $1 $14) 48. Rxe6 $16 {[%emt 0:00:08]} Rxd4 {[%emt 0:00:21]} 49. Rxa6 {[%emt 0:00:04]} Rd5 {[%emt 0:00:04]} 50. g4 {[%emt 0:00:14]} Rd2 {[%emt 0:00:04]} 51. Kf1 {[%emt 0:00:20]} Kf7 {[%emt 0:00:14]} 52. Ke1 {[%emt 0:00:34]} Rb2 {[%emt 0:00:23]} 53. Rd6 {[%emt 0:00:05]} Ra2 {[%emt 0:08:59]} 54. Rd2 {[%emt 0:01:00]} Ra7 {[%emt 0:02:08]} 55. Kf2 {[%emt 0:00:26]} Rb7 {[%emt 0:00:06]} 56. Ke3 {[%emt 0:00:11]} Ra7 {[%emt 0:00:02]} 57. Ke4 {[%emt 0:00:11]} Rb7 {[%emt 0:00:04]} 58. Rd5 {[%emt 0:00:33]} Ra7 {[%emt 0:00:04]} 59. Kf5 {[%emt 0:00:57]} Rb7 {[%emt 0:00:04]} 60. f4 {[%emt 0:00:37]} Ra7 {[%emt 0:00:20]} 61. Rc5 {[%emt 0:01:08]} Rb7 {[%emt 0:00:05]} 62. Ke5 {[%emt 0:00:07]} Re7+ {[%emt 0:00:46] [#]} 63. Kf5 {[%emt 0:02:05]} (63. Kd4 $1 $16) 63... Ra7 {[%emt 0:00:04]} (63... Rb7 $11) 64. Rb5 $16 {[%emt 0:00:37]} Rc7 {[%emt 0:00:07]} 65. Ra5 {[%emt 0:00:27]} Rb7 {[%emt 0:00:06]} 66. Ra4 {[%emt 0:00:46]} Rc7 {[%emt 0:00:04]} 67. Ke4 {[%emt 0:00:14]} Rb7 {[%emt 0:00:24]} 68. g5 {[%emt 0:01:07]} hxg5 {[%emt 0:01:21]} 69. fxg5 {[%emt 0:00:21]} Rb8 {[%emt 0:03:33]} 70. Ra7+ {[%emt 0:01:16]} Kg8 {[%emt 0:00:30]} 71. Rd7 {[%emt 0:01:06]} (71. g6 $16) 71... Ra8 {[%emt 0:00:05] [#]} (71... Kh7 $1 $11) 72. Ke5 {[%emt 0:00:21]} (72. g6 $1 $16) 72... Kf8 {[%emt 0:02:54]} (72... Kh7 $1 $11) 73. Ke6 {[%emt 0:01:06]} ({Much weaker is} 73. h6 $6 gxh6 74. gxh6 Kg8 $11) 73... Ra6+ {[%emt 0:00:35]} 74. Rd6 {[%emt 0:00:19]} Ra8 {[%emt 0:00:19]} 75. Rc6 {[%emt 0:01:20]} Rd8 {[%emt 0:08:09]} 76. Rc7 {[%emt 0:02:28]} Ra8 {[%emt 0:03:40]} 77. Kd7 {[%emt 0:00:11]} Kf7 {[%emt 0:01:19]} 78. Kd6+ {[%emt 0:00:41]} Kf8 {[%emt 0:01:29]} 79. Ke6 {[%emt 0:00:42]} Rb8 {[%emt 0:01:16]} 80. Kf5 {[%emt 0:00:16]} Kg8 {[%emt 0:00:11]} 81. Ke6 {[%emt 0:00:24]} Kf8 {[%emt 0:00:13]} 82. g6 {[%emt 0:00:18]} Re8+ {[%emt 0:01:17]} 83. Kd6 {[%emt 0:00:02]} ({Reject} 83. Kd7 $6 Re7+ 84. Kd8 Rxc7 85. Kxc7 Ke7 $11) 83... Rd8+ {[%emt 0:00:12]} 84. Rd7 {[%emt 0:00:09]} (84. Ke5 $16) 84... Rxd7+ $1 $11 {[%emt 0:01:15]} 85. Kxd7 {[%emt 0:00:04]} Kg8 {[%emt 0:00:03]} 86. Ke7 {[%emt 0:00:03]} Kh8 {[%emt 0:00:02]} 87. h6 {[%emt 0:00:11]} Kg8 {[%emt 0:00:01]} 88. h7+ {[%emt 0:00:04]} Kh8 1/2-1/2